Cogmind - Beta 12 X4 @@@ ROGUE MODE // 2022.12.06 @ 13:59:30 Player: Jezoensis Result: Destroyed by D-53 Grenadier with Mini Grenade Launcher Performance ------------- Evolutions (0) 0 Regions Visited (2) 400 Robots Destroyed (7) 35 Value Destroyed (116) 116 Prototype IDs (0) 0 Alien Tech Used (0) 0 Bonus (-1) -1 TOTAL SCORE: 550 Bonus ------- Friendly Fire -1 Cogmind --------- Core Integrity 0/250 Matter 82/300 Energy 82/100 System Corruption 0% Temperature Cool (0) Movement Core (50) Location -10/Mines Parts ------- > --- POWER (1) -------- (None) > --- PROPULSION (2) --- (None) > --- UTILITY (2) ------ (None) > --- WEAPON (2) ------- (None) > --- INVENTORY (5) ---- High-capacity Storage Unit Sensor Array Sensor Array Light Assault Rifle Mining Laser Peak State ------------ > --- POWER ------------ Ion Engine > --- PROPULSION ------- Aluminum Leg Aluminum Leg > --- UTILITY ---------- Small Storage Unit Improved Terrain Scanner > --- WEAPON ----------- Assault Rifle Assault Rifle > --- INVENTORY -------- Ion Engine Wheel Compact Wheel Light Assault Rifle Mining Laser [Rating: 9] Favorites ----------- Power Ion Engine Engine Ion Engine Propulsion Aluminum Leg Leg Aluminum Leg Wheel Wheel Utility Small Storage Unit Device Structural Scanner Storage Small Storage Unit Weapon Assault Rifle Ballistic Gun Assault Rifle Launcher Rocket Launcher Special Weapon Mining Laser Build | -11 -10 -10 ------- Run | Scr Mat Min Slots Evolved . | . . . Power . | . . . Propulsion . | . . . Utility . | . . . Weapon . | . . . Parts Attached 28 | 7 13 8 Power 2 | 1 1 . Engine 2 | 1 1 . Core . | . . . Reactor . | . . . Propulsion 8 | 2 4 2 Treads . | . . . Leg 7 | 2 3 2 Wheel 1 | . 1 . Hover . | . . . Flight . | . . . Utility 6 | 2 4 . Device 4 | 1 3 . Storage 2 | 1 1 . Processor . | . . . Hackware . | . . . Protection . | . . . Artifact . | . . . Weapon 12 | 2 4 6 Energy Gun . | . . . Energy Cannon . | . . . Ballistic Gun 8 | 2 3 3 Ballistic Cannon . | . . . Launcher 3 | . . 3 Special Weapon 1 | . 1 . Impact Weapon . | . . . Slashing Weapon . | . . . Piercing Weapon . | . . . Special Melee Weapon . | . . . Unidentified Prototypes . | . . . Parts Lost 7 | . . 7 Power 1 | . . 1 Propulsion 3 | . . 3 Utility 1 | . . 1 Weapon 2 | . . 2 Highest Loss Streak 7 | . . 7 To Critical Strikes . | . . . Average Slot Usage (%) 96 | . 97 88 Engine 12 | . 13 11 Leg 26 | . 27 23 Device 13 | . 14 11 Storage 14 | . 14 14 Ballistic Gun 25 | . 26 21 Naked Turns 1 | . . 1 Heaviest Build 20 | 15 20 20 Greatest Support 20 | 20 20 20 Greatest Overweight (x) . | . . . Average Overweight (x) . | . . . Largest Inventory Capacity 10 | 8 10 10 Average Capacity 8 | 6 8 9 Most Carried 10 | 6 10 10 Average Carried 7 | 3 8 9 Final Capacity 10 | 8 10 5 Final Carried 10 | 6 10 5 Class Distribution -------------------- 100% | Mutant Dominant Class ---------------- Mutant | -10/Materials Mutant | -10/Mines Resources | -11 -10 -10 ----------- Run | Scr Mat Min Matter Collected 464 | 282 182 . Remotely . | . . . Salvage Created 310 | 108 182 20 Parts 20 | 7 12 1 Haulers Intercepted . | . . . Recyclers Shooed . | . . . Parts Field Recycled . | . . . Retrieved Matter . | . . . Parts Self-Destructed . | . . . Prevented . | . . . Kills | -11 -10 -10 ------- Run | Scr Mat Min Combat Hostiles Destroyed 14 | . 2 12 Guns 2 | . 2 . AOE 12 | . . 12 Classes Destroyed 6 | 2 2 2 Worker 1 | . . 1 Builder 1 | . 1 . Tunneler 1 | 1 . . Recycler 2 | 1 1 . Grunt 2 | . 2 . Assembled 12 | . . 12 Best Kill Streak 13 | 2 2 13 Combat Bots Only 12 | . 2 12 Max Kills in Single Turn 3 | 1 1 3 Gunslinging . | . . . Exploded 3 | . . 3 Melee . | . . . Uniques/NPCs Destroyed . | . . . Combat | -11 -10 -10 -------- Run | Scr Mat Min Damage Taken 901 | . 220 681 Core 267 | . 27 240 Absorbed by Shields . | . . . Core Remaining (%) 100 | 100 . . Volleys Fired 31 | 2 16 13 Largest 2 | 2 2 2 Hottest 100 | 40 100 53 Shots Fired 50 | 4 31 15 Gun 37 | 4 30 3 Cannon . | . . . Launcher 12 | . . 12 Special 1 | . 1 . Kinetic 37 | 4 30 3 Thermal 1 | . 1 . Explosive 12 | . . 12 Electromagnetic . | . . . Robot Hit Streak 7 | 2 7 7 Robot Miss Streak 2 | 1 2 2 Penetration Max . | . . . Secondary Targets . | . . . Shots Hit Robots 31 | 2 20 9 Core Hits 40 | 2 8 30 Critical Kills . | . . . Critical Parts Destroyed . | . . . Critical Strikes . | . . . Melee Attacks . | . . . Impact . | . . . Slashing . | . . . Piercing . | . . . Sneak Attacks . | . . . Combat Hostiles . | . . . Follow-up Attacks . | . . . Damage Inflicted 1101 | 28 249 824 Guns 297 | 28 249 20 Cannons . | . . . Explosions 804 | . . 804 Melee . | . . . Ramming . | . . . Kinetic 297 | 28 249 20 Thermal . | . . . Explosive 804 | . . 804 Electromagnetic . | . . . Impact . | . . . Slashing . | . . . Piercing . | . . . Highest Corruption . | . . . Average Corruption . | . . . Corruption Purged . | . . . Corruption Blocked . | . . . Overload Shots . | . . . Overflow Damage . | . . . Projectiles . | . . . Explosions . | . . . Melee . | . . . Knockbacks . | . . . Impact . | . . . Kinetic . | . . . Secondary . | . . . Self-Inflicted Damage 56 | . . 56 Shots 2 | . . 2 Rammed . | . . . Targets Rammed 1 | . 1 . Kicked 1 | . 1 . Crushed . | . . . Highest Temperature 20 | . 20 . Average Temperature 9 | . 9 . Received Heat Transfer 111 | . 90 21 Siege Activations . | . . . Robots Corrupted . | . . . Combat Hostiles . | . . . Parts Fried . | . . . Impact Corruptions . | . . . Robots Melted . | . . . Combat Hostiles . | . . . Parts Melted . | . . . Heat Transferred . | . . . Parts Sabotaged . | . . . Parts Stolen . | . . . Parts Stripped . | . . . Power Chain Reactions . | . . . Missiles Intercepted . | . . . Alert | -11 -10 -10 ------- Run | Scr Mat Min Peak Influence 201 | 10 131 201 Initial 51 | . 6 51 Average 59 | 5 59 112 Maximum Alert Level 1 | . . 1 Low Security (%) 99 | 100 100 98 Level 1 . | . . 1 Level 2 . | . . . Level 3 . | . . . Level 4 . | . . . Level 5 . | . . . High Security . | . . . Max Security . | . . . Squads Dispatched 4 | . 3 1 Investigation 1 | . . 1 Extermination . | . . . Reinforcement 3 | . 3 . Assault . | . . . Garrison . | . . . Intercept . | . . . Searches Triggered . | . . . Construction Impeded . | . . . Haulers Reinforced . | . . . Active Scanning Responses . | . . . Cargo Convoy Interrupts . | . . . Stealth | -11 -10 -10 --------- Run | Scr Mat Min Distress Signals . | . . . Communications Jammed . | . . . Distress Signals . | . . . Times Spotted 30 | . 10 20 Peak Tracking Total 6 | . 6 6 Tactical Retreats 1 | . 1 . Traps | -11 -10 -10 ------- Run | Scr Mat Min Traps Triggered 3 | . 3 . Indirectly . | . . . Trap Hack Attempts . | . . . Triggered . | . . . Disarmed . | . . . Reprogrammed . | . . . Reused . | . . . Traps Extracted . | . . . Installed . | . . . Triggered . | . . . Machines | -11 -10 -10 ---------- Run | Scr Mat Min Machines Disabled 1 | . . 1 Max in Single Turn 1 | . . 1 Machines Sabotaged . | . . . Overloaded Fab Kills . | . . . Hacking | -11 -10 -10 --------- Run | Scr Mat Min Machines Accessed 3 | . 2 1 Terminals 3 | . 2 1 Fabricators . | . . . Repair Stations . | . . . Recycling Units . | . . . Scanalyzers . | . . . Garrison Access . | . . . Total Hacks 9 | . 6 3 Successful 3 | . 2 1 Failed 5 | . 4 1 Catastrophic . | . . . Database Lockouts 1 | . . 1 Manual 4 | . 1 3 Terminals 9 | . 6 3 Fabricators . | . . . Repair Stations . | . . . Recycling Units . | . . . Scanalyzers . | . . . Garrison Access . | . . . Terminal Hacks 2 | . 1 1 Robot Analysis 2 | . 1 1 Fabricator Hacks . | . . . Repair Station Hacks . | . . . Recycling Unit Hacks . | . . . Scanalyzer . | . . . Garrison Access Hacks . | . . . Unauthorized Hacks 1 | . 1 . Terminals 1 | . 1 . Botnet 1 | . 1 . Fabricators . | . . . Repair Stations . | . . . Recycling Units . | . . . Scanalyzers . | . . . Garrison Access . | . . . Data Cores Recovered . | . . . Used . | . . . Hacking Detections 3 | . 2 1 Full Trace Events 2 | . 1 1 Feedback Events . | . . . Feedback Blocked . | . . . Robot Schematics Acquired . | . . . Robots Built . | . . . Authchips . | . . . Time . | . . . Total Robot Build Rating . | . . . Part Schematics Acquired . | . . . Parts Built . | . . . Authchips . | . . . Time . | . . . Total Part Build Rating . | . . . Parts Repaired . | . . . Time . | . . . Parts Recycled . | . . . Recycled Matter . | . . . Retrieved Matter . | . . . Retrieved Components . | . . . Parts Scanalyzed . | . . . Part Schematics Acquired . | . . . Parts Damaged . | . . . Bothacking | -11 -10 -10 ------------ Run | Scr Mat Min Used RIF Installer . | . . . Robots Hacked . | . . . Non-combat . | . . . Combat . | . . . Robot Hacks Applied . | . . . Relay Couplers Released . | . . . Fabnet Peak Effective % . | . . . Robots Rewired . | . . . Allies Hacked . | . . . Hacks Repelled . | . . . Allies | -11 -10 -10 -------- Run | Scr Mat Min Total Allies . | . . . Largest Group . | . . . Highest-Rated Group . | . . . Highest-Rated Ally . | . . . Total Orders . | . . . Ally Attacks . | . . . Total Damage . | . . . Kills . | . . . Allies Corrupted . | . . . Allies Melted . | . . . Intel | -11 -10 -10 ------- Run | Scr Mat Min Robot Analysis Total 2 | . 1 1 Derelict Logs Recovered . | . . . Drone Launches . | . . . Drone Recoveries . | . . . Exploration | -11 -10 -10 ------------- Run | Scr Mat Min Turns Passed 424 | 63 296 65 Spaces Moved 233 | 38 173 22 Core 8 | 7 . 1 Treads . | . . . Legs 224 | 31 172 21 Wheels 1 | . 1 . Hover . | . . . Flight . | . . . Fastest Speed 50 | 50 80 50 Average Speed 117 | 107 119 116 Slowest Speed 120 | 120 120 120 Overloaded Moves . | . . . Propulsion Burnouts . | . . . Robots Hopped . | . . . Cave-ins Triggered . | . . . Exploration Rate (%) 18 | 3 40 11 Regions Visited 2 Branch Regions 1 Pre-discovered Areas . | . . . Known Exits Taken . | . . . Unknown Exits Taken 2 | 1 1 . Scrap Searched . | . . . Spaces Dug 1 | . 1 . Terrain Destroyed 111 | . 1 110 Melee . | . . . Projectile 1 | . 1 . AOE 110 | . . 110 Terrain Rammed . | . . . Walls Destroyed . | . . . Machines Disabled . | . . . Actions | -11 -10 -10 --------- Run | Scr Mat Min Total 323 | 53 225 45 Wait 11 | . 11 . Move 231 | 37 172 22 Hop . | . . . Pick Up 15 | 7 8 . Fast Attach 15 | 6 8 1 Attach 7 | 1 2 4 Detach 1 | . . 1 Swap 6 | . 3 3 Drop 5 | . 4 1 Fire 31 | 2 16 13 Melee . | . . . Ram . | . . . Kick 1 | . 1 . Crush . | . . . Escape Stasis . | . . . Rewire . | . . . Trap . | . . . Miscellaneous . | . . . Route ------- -11/Scrapyard -10/Materials (discovered 2 exits: [*Mat] / *Min) -10/Mines History --------- Turn | Location | Event 6 | -11/Scrapyard | Discovered new exit (range 15) 64 | -11/Scrapyard | Entered Materials 182 | -10/Materials | Discovered new exit (range 9) 314 | -10/Materials | Build established: Mutant 323 | -10/Materials | Discovered new exit (range 14) 360 | -10/Materials | Entered Mines 362 | -10/Mines | Central database locked down 375 | -10/Mines | Assembled infested the area 379 | -10/Mines | Received a Rocket Launcher from a helpful Derelict 380 | -10/Mines | Assisted by a Guerilla fighting off Assembled 420 | -10/Mines | Core integrity fell below 50% 424 | -10/Mines | Destroyed 12 combat bots 424 | -10/Mines | Core integrity fell below 20% 424 | -10/Mines | Released all parts (4) 425 | -10/Mines | Destroyed by D-53 Grenadier with Mini Grenade Launcher Last Messages --------------- 00411_ Assault Rifle destroyed. 00412_ The unstable cave ceiling collapses. 00413_ K-01 Serf destroyed. 00413_ Aluminum Leg destroyed. 00413_ HV Slug penetrates as-06674. 00413_ as-06674 suffers critical hit (Destroy). 00413_ as-06674 knocked back. 00413_ K-01 Serf destroyed. 00415_ Laser Drill disabled. 00415_ TM-JAM(h) destroyed. 00415_ Structural Scanner destroyed. 00415_ Aluminum Leg destroyed. 00418_ The unstable cave ceiling collapses. 00419_ Rocket Launcher destroyed. 00419_ Ion Engine destroyed. 00421_ The unstable cave ceiling collapses. 00424_ Released Assault Rifle. 00424_ Released Med. Storage Unit. 00424_ Released Aluminum Leg. 00424_ Released Lgt. Assault Rifle. Map ----- +----------------------------------------------------+ | | | | | | | | | | | | | | | | | | | | | ??????????###########????????????????????????????? | | ??????????###########????????????????????????????? | | ??????????## """ ##????????????????????????????? | | ??????????## """ ######????????????????????????? | | ??????????## """ ######????????????????????????? | | ??????????## ##????????????????????????? | | ?????????### ### ###???????????????????????? | | ?????????### ### ####??????????????????????? | | ?????????##T ### ######??#### ? ??????????? | | ?????????############ ####### ??????????? | | ?????????############ ## g ???????????? | | ???????????????????## # ## ???????????? | | ??????????????????### g ###???????????? | | ??????????????????### ! % ##???????????? | | ?????????????## # ![[ ###???????????? | | ?????????????## @ ##???????????? | | ?????????????## d # ###???????????? | | ?????????????## %d ###???????????? | | ????????????### # # ##????????????? | | ????????????## ###???????????? | | ????????????## # ## # ##???????????? | | ????????????## "" ######### # ##???????????? | | ????????????## ""? ####??# ###???????????? | | ????????????## "???????????? % ###???????????? | | ???????????????????????????? ###????????????? | | ????????????????????????????? ????????????? | | ????????????????????????????? ?????????????? | | ?????????????????????????????? ??????????????? | | ??????????????????????????????? ????????????????? | | ?????????????????????????????????????????????????? | | ?????????????????????????????????????????????????? | | ?????????????????????????????????????????????????? | | ?????????????????????????????????????????????????? | | ?????????????????????????????????????????????????? | | ?????????????????????????????????????????????????? | | ?????????????????????????????????????????????????? | | ?????????????????????????????????????????????????? | | ?????????????????????????????????????????????????? | | ?????????????????????????????????????????????????? | | ?????????????????????????????????????????????????? | +----------------------------------------------------+ Best States ------------- Heat Dissipation 25 Energy Generation 10 Energy Capacity 250 Matter Stores 300 Matter Capacity 300 Sight Range 16 Terrain Scan Range 16 Terrain Scan Density 10 Evasion (%) 55 Item Schematics ----------------- None Robot Schematics ------------------ None Fabricated ------------ Nothing Alien Tech Used ----------------- None Achievements -------------- None Challenges ------------ None Game ------ Seed NeutronSpikedSlayer Manual? 0 Play Time 00:09:43 Cumulative 787.6 hours Start 2022.12.06 @ 13:52:11 End 2022.12.06 @ 13:59:30 Sessions 1 Manual Loads 0 Difficulty Rogue Special Mode None Game No. 416 Rogue 289 Adventurer 125 Explorer 2 Win Type - Total 94 Types 78/7/5/1/1/0/0/1/1 Lore% 82 Gallery% 89 Achievement% 79 Wizard Run 0 Options --------- ASCII 0 Keyboard 1 Movement Numpad Keybinds 0 Fullscreen 1 Font 36/TerminusFine Map View 76x50 Tactical HUD 1 Map Filters NONE Filters NONE Steam 1 RUN: 4f43acef-1112-431b-b008-ff7f2214bce4